bitfinex/quotes_BTCUSD_20241119
["timestamp","ask_amount","ask_price","bid_price","bid_amount"]
[1731990428052,0.0017082,91568.0,91563.0,0.132214]
[1731990428053,0.0017082,91568.0,91567.0,0.132209]
[1731990428203,0.0017082,91568.0,91567.0,0.232209]
[1731990430151,0.0017082,91568.0,91567.0,0.209209]
[1731990430425,0.0017082,91568.0,91567.0,0.31827155]
[1731990430859,0.0017082,91568.0,91567.0,0.36190203]
[1731990431545,0.0017082,91568.0,91567.0,0.38399705]
[1731990432196,0.0017082,91568.0,91567.0,0.38599705]
[1731990432774,0.0017082,91568.0,91567.0,0.41199705]
[1731990433537,0.0017082,91568.0,91567.0,0.41195685]
[1731990433780,0.0017082,91568.0,91567.0,0.2798943]
[1731990434211,0.0017082,91568.0,91567.0,0.25779928]
[1731990434828,0.0017082,91568.0,91567.0,0.36686183]
[1731990435037,0.16156475,91578.0,91577.0,0.109197]
[1731990435252,0.21463041,91578.0,91577.0,0.109197]
[1731990435433,0.05306566,91578.0,91577.0,0.109197]
[1731990437227,0.02040987,91578.0,91577.0,0.109197]
[1731990437422,0.02040987,91578.0,91577.0,0.23283105]
[1731990437631,0.0073416,91580.0,91579.0,0.109195]
[1731990437834,0.02774794,91580.0,91579.0,0.109195]
[1731990438879,0.02774794,91580.0,91579.0,0.110195]
[1731990438880,0.01974794,91580.0,91579.0,0.110195]
[1731990439976,0.01974794,91580.0,91579.0,0.15475518]
[1731990441566,0.01707599,91583.0,91582.0,0.109191]
[1731990442178,0.01707599,91583.0,91582.0,0.4987876]
[1731990442389,0.01707599,91583.0,91582.0,0.6007876]
[1731990442518,0.01707599,91583.0,91582.0,0.65020642]
[1731990443206,0.01707599,91583.0,91582.0,0.68043387]
[1731990443412,0.01707599,91583.0,91582.0,0.69543387]
[1731990443982,0.01707599,91583.0,91582.0,0.79276543]
[1731990444215,0.01707599,91583.0,91582.0,0.66320642]
[1731990444645,0.01707599,91583.0,91582.0,0.65920642]
[1731990444851,0.0004,91589.0,91588.0,0.119184]
[1731990445054,0.0004,91589.0,91588.0,0.35124655]
[1731990445275,0.0004,91589.0,91588.0,0.35324655]
[1731990445748,0.0004,91589.0,91588.0,0.39266537]
[1731990445902,0.0004,91589.0,91588.0,0.35324655]
[1731990446331,0.0004,91589.0,91588.0,0.38124655]
[1731990448018,0.0004,91589.0,91588.0,0.39824655]
[1731990451365,0.0004,91589.0,91588.0,0.39624655]
[1731990451769,0.0004,91589.0,91588.0,0.38624655]
[1731990451977,0.0004,91589.0,91588.0,0.39624655]
[1731990452175,0.0004,91589.0,91588.0,0.38624655]
[1731990452377,0.0004,91589.0,91588.0,0.39624655]
[1731990452819,0.0004,91589.0,91588.0,0.38624655]
[1731990453295,0.0004,91589.0,91588.0,0.36324655]
[1731990453831,1.00004,91600.0,91594.0,0.109177]
[1731990453832,0.0125797,91595.0,91594.0,0.109177]
[1731990454059,0.0125797,91595.0,91594.0,0.23281105]
[1731990454265,0.01778913,91595.0,91594.0,0.23281105]
[1731990454845,0.01778913,91595.0,91594.0,0.3448736]
[1731990455254,0.0125797,91595.0,91594.0,0.3448736]
[1731990455478,0.0125797,91595.0,91594.0,0.3468736]
[1731990456546,0.03295062,91595.0,91594.0,0.3468736]
[1731990456740,0.03816005,91595.0,91594.0,0.3468736]
[1731990457192,0.01778913,91595.0,91594.0,0.3468736]
[1731990457543,0.03295687,91595.0,91594.0,0.39170214]
[1731990457761,0.0125797,91595.0,91594.0,0.39170214]
[1731990458396,0.0329585,91595.0,91594.0,0.39170214]
[1731990458923,0.0125797,91595.0,91594.0,0.39170214]
[1731990459139,0.03295851,91595.0,91594.0,0.39170214]
[1731990459335,0.03466611,91595.0,91594.0,0.39170214]
[1731990459748,0.03987554,91595.0,91594.0,0.39170214]
[1731990459951,0.03987554,91595.0,91594.0,0.28263959]
[1731990460363,0.03987554,91595.0,91594.0,0.24005656]
[1731990461023,0.03987554,91595.0,91594.0,0.23805656]
[1731990461220,0.03987554,91595.0,91594.0,0.23505656]
[1731990461457,0.03987554,91595.0,91594.0,0.23605656]
[1731990461662,0.03987554,91595.0,91594.0,0.23805656]
[1731990463095,0.01949673,91595.0,91594.0,0.23805656]
[1731990463269,0.03988697,91595.0,91594.0,0.23805656]
[1731990463872,0.03988697,91595.0,91594.0,0.42817013]
[1731990464094,0.03467754,91595.0,91594.0,0.42817013]
[1731990465552,0.03467754,91595.0,91594.0,0.56117013]
[1731990465803,0.0142873,91595.0,91594.0,0.60697013]
[1731990466046,0.0142873,91595.0,91594.0,0.68837013]
[1731990466466,0.0142873,91595.0,91594.0,0.64973597]
[1731990467392,0.0142873,91595.0,91594.0,0.65973597]
[1731990467724,0.0142873,91595.0,91594.0,0.69852183]
[1731990468105,0.0062873,91595.0,91594.0,0.65973597]
[1731990468540,0.0062873,91595.0,91594.0,0.69852183]
[1731990469761,0.0062873,91595.0,91594.0,0.70052183]
[1731990469964,0.0062873,91595.0,91594.0,0.66173597]
[1731990470269,0.0062873,91595.0,91594.0,0.65973597]
[1731990470462,0.0062873,91595.0,91594.0,0.66173597]
[1731990471093,0.0062873,91595.0,91594.0,0.65173597]
[1731990471310,0.0062873,91595.0,91594.0,0.66258967]
[1731990471904,0.0062873,91595.0,91594.0,1.36158967]
[1731990472319,0.0062873,91595.0,91594.0,1.37258967]
[1731990472769,0.0062873,91595.0,91594.0,1.39858967]
[1731990473204,1.00004,91600.0,91596.0,0.011]
[1731990473435,1.00004,91600.0,91596.0,0.36323755]
[1731990474295,1.00004,91600.0,91596.0,0.36123755]
[1731990474514,1.00004,91600.0,91596.0,0.37323755]
[1731990474721,1.00004,91600.0,91596.0,0.39623755]
[1731990475131,1.00004,91600.0,91596.0,0.39423755]
[1731990475563,1.00004,91600.0,91596.0,0.39623755]
[1731990476224,1.00004,91600.0,91596.0,0.39423755]
[1731990477108,1.00004,91600.0,91596.0,0.38423755]
[1731990477340,0.0221305,91597.0,91596.0,0.36123755]
[1731990477553,0.001709,91597.0,91596.0,0.36123755]
[1731990477753,0.02212945,91597.0,91596.0,0.37123755]
[1731990477960,0.02212945,91597.0,91596.0,0.33823755]
[1731990478182,0.02212945,91597.0,91596.0,0.35123755]
[1731990478419,0.02212945,91597.0,91596.0,0.37423755]
[1731990478631,0.02212945,91597.0,91596.0,0.37623755]
[1731990478839,0.02212945,91597.0,91596.0,0.39723755]
[1731990479044,0.02212945,91597.0,91596.0,0.46373694]
[1731990479251,0.02212945,91597.0,91596.0,0.44273694]
[1731990479766,0.02212945,91597.0,91596.0,0.52003694]
[1731990479976,0.02212945,91597.0,91596.0,0.55583694]
[1731990480216,0.001709,91597.0,91596.0,0.48933755]
[1731990480422,0.001709,91597.0,91596.0,0.50133755]
[1731990480853,0.001709,91597.0,91596.0,0.48933755]
[1731990481100,0.001709,91597.0,91596.0,0.52633755]
[1731990481313,0.001709,91597.0,91596.0,0.49493662]
[1731990481519,0.001709,91597.0,91596.0,0.47893662]
[1731990481738,0.001709,91597.0,91596.0,0.50693662]
[1731990481939,0.001709,91597.0,91596.0,0.49693662]
[1731990482173,0.001709,91597.0,91596.0,0.52493662]
[1731990482944,0.996749,91600.0,91599.0,0.252171]
[1731990483149,0.996749,91600.0,91599.0,0.36123355]
[1731990483988,0.988749,91600.0,91599.0,0.37623355]
[1731990484201,0.988749,91600.0,91599.0,0.40123355]
[1731990484576,0.988749,91600.0,91599.0,0.38329593]
[1731990484998,0.988749,91600.0,91599.0,0.34123355]
[1731990485359,0.988749,91600.0,91599.0,0.24623355]
[1731990485537,0.988749,91600.0,91599.0,0.21823355]
[1731990485734,0.988749,91600.0,91599.0,0.22229593]
[1731990485957,0.966915,91600.0,91599.0,0.35049593]
[1731990486381,0.966915,91600.0,91599.0,0.49629393]
[1731990486596,0.966915,91600.0,91599.0,0.35049593]
[1731990486808,0.966915,91600.0,91599.0,0.37049593]
[1731990487029,0.966915,91600.0,91599.0,0.39349593]
[1731990487274,0.966915,91600.0,91599.0,0.47349593]
[1731990487481,0.966915,91600.0,91599.0,0.68790526]
[1731990487683,0.966915,91600.0,91599.0,0.69790526]
[1731990488093,0.966915,91600.0,91599.0,0.68790526]
[1731990488287,0.966915,91600.0,91599.0,0.84482872]
[1731990488563,0.966915,91600.0,91599.0,1.57285544]
[1731990488745,0.966915,91600.0,91599.0,1.57280594]
[1731990489148,0.966915,91600.0,91599.0,1.37641939]
[1731990489687,0.966915,91600.0,91599.0,1.37841939]
[1731990490160,0.966915,91600.0,91599.0,1.52419938]
[1731990490563,0.966915,91600.0,91599.0,1.522137]
[1731990490815,0.966915,91600.0,91599.0,1.52419938]
[1731990491412,0.966915,91600.0,91599.0,1.52416427]
[1731990491615,0.966915,91600.0,91599.0,1.37841939]
[1731990491829,0.966915,91600.0,91599.0,1.24621939]
[1731990491987,0.966915,91600.0,91599.0,1.24821939]
[1731990492160,0.966915,91600.0,91599.0,1.39396267]
[1731990492391,0.966915,91600.0,91599.0,1.24621939]
[1731990493086,0.966915,91600.0,91599.0,1.1652112]
[1731990493289,0.966915,91600.0,91599.0,1.24621939]
[1731990493503,0.966915,91600.0,91599.0,1.24415701]
[1731990494562,0.966915,91600.0,91599.0,1.05914063]
[1731990494776,0.966915,91600.0,91599.0,1.14014882]
[1731990495376,0.966915,91600.0,91599.0,0.44014882]
[1731990495721,0.98733642,91600.0,91599.0,0.44014882]
[1731990495938,0.966915,91600.0,91599.0,0.52115701]
[1731990496510,0.966915,91600.0,91599.0,1.2373015]
[1731990496726,0.966915,91600.0,91599.0,1.31830969]
[1731990497490,0.966915,91600.0,91599.0,1.32030969]
[1731990497914,0.966915,91600.0,91599.0,0.61830969]
[1731990498914,0.958915,91600.0,91599.0,0.61830969]
[1731990499349,0.958915,91600.0,91599.0,0.57230969]
[1731990499561,0.958915,91600.0,91599.0,0.61730969]
[1731990500012,0.958915,91600.0,91599.0,0.5363015]
[1731990501290,0.958915,91600.0,91599.0,0.61730969]
[1731990501491,0.958915,91600.0,91599.0,0.52015701]
[1731990502301,0.958915,91600.0,91599.0,0.52215701]
[1731990503527,0.958915,91600.0,91599.0,0.54721939]
[1731990503998,0.93763928,91600.0,91599.0,0.54721939]
[1731990504425,0.93763928,91600.0,91599.0,0.97721939]
[1731990506449,0.93763928,91600.0,91599.0,1.12107654]
[1731990506760,0.93763928,91600.0,91599.0,0.69307654]
[1731990507078,0.93763928,91600.0,91599.0,0.73817654]
[1731990507514,0.93763928,91600.0,91599.0,0.73903114]
[1731990507732,0.0017094,91611.0,91599.0,0.73903114]
[1731990507733,0.0017094,91611.0,91599.0,0.83092501]
[1731990507902,0.0017094,91611.0,91610.0,0.37523676]
[1731990508143,0.0017094,91611.0,91610.0,0.65319885]
[1731990509172,0.0017094,91611.0,91610.0,0.68119885]
[1731990509552,0.0017094,91611.0,91610.0,0.50729931]
[1731990509756,0.0017094,91611.0,91610.0,0.55629931]
[1731990509976,0.04128204,91627.0,91621.0,0.00206238]
[1731990510205,0.04128204,91627.0,91610.0,0.72893548]
[1731990510206,0.00181823,91651.0,91644.0,0.232117]
[1731990510393,0.00181823,91651.0,91644.0,0.23617938]
[1731990510394,0.02036444,91645.0,91644.0,0.23617938]
[1731990510591,0.19713428,91673.0,91668.0,0.109089]
[1731990510799,0.04667687,91669.0,91668.0,0.109089]
[1731990511061,0.04667687,91669.0,91668.0,0.27110538]
[1731990511062,0.0004,91669.0,91668.0,0.27110538]
[1731990511245,0.0004,91669.0,91668.0,0.55032203]
[1731990511513,0.01,91688.0,91668.0,0.55032203]
[1731990511705,0.0491074,91689.0,91668.0,0.55032203]
[1731990511706,0.0091751,91671.0,91670.0,0.23414838]
[1731990511915,0.0091751,91671.0,91670.0,0.34521093]
[1731990512119,0.0091751,91671.0,91670.0,0.34114855]
[1731990512331,0.0091751,91671.0,91670.0,0.46898902]
[1731990512761,0.0091751,91671.0,91670.0,0.59889187]
[1731990512950,0.0091751,91671.0,91670.0,0.4710514]
[1731990513168,0.0091751,91671.0,91670.0,0.59889187]
[1731990513380,0.0091751,91671.0,91670.0,0.65389187]
[1731990514017,0.0011751,91671.0,91670.0,0.65389187]
[1731990516369,0.0011751,91671.0,91670.0,0.72889187]
[1731990520512,0.0011751,91671.0,91670.0,0.73059967]
[1731990520717,0.002029,91671.0,91670.0,0.73059967]
[1731990522467,0.002029,91671.0,91670.0,0.47291873]
[1731990522749,0.002029,91671.0,91670.0,1.2277592]
[1731990523483,0.002029,91671.0,91670.0,1.2257592]
[1731990523897,0.0017074,91687.0,91670.0,1.2257592]
[1731990523898,0.0017074,91687.0,91680.0,0.36197785]
[1731990524114,0.0017074,91687.0,91680.0,0.4710404]
[1731990524961,0.0017074,91687.0,91680.0,0.4730404]
[1731990525172,0.0017074,91687.0,91680.0,0.4710404]
[1731990525374,0.0017074,91687.0,91680.0,0.5270404]
[1731990525606,0.0017074,91687.0,91680.0,0.4990404]
[1731990525815,0.0017074,91687.0,91680.0,0.4710404]
[1731990526033,0.0017074,91687.0,91680.0,0.5270404]
[1731990526268,0.0017074,91687.0,91680.0,0.9570404]
[1731990526699,0.0017074,91687.0,91680.0,1.0408404]
[1731990526904,0.0017074,91687.0,91680.0,1.0388404]
[1731990527109,0.0017074,91687.0,91680.0,1.0408404]
[1731990527324,0.0017074,91687.0,91680.0,1.08433719]
[1731990528172,6e-07,91681.0,91680.0,1.08233719]
[1731990528385,0.0004,91709.0,91680.0,1.08233719]
[1731990528386,0.0004,91709.0,91699.0,0.23411438]
[1731990528590,0.0004,91709.0,91699.0,0.4710174]
[1731990528794,0.0004,91709.0,91699.0,0.4730174]
[1731990529018,0.0004,91709.0,91699.0,0.4710174]
[1731990529234,0.0004,91709.0,91699.0,0.4730174]
[1731990529475,0.00204,91700.0,91699.0,0.4850174]
[1731990529685,0.00204,91700.0,91699.0,0.9400174]
[1731990530097,0.00204,91700.0,91699.0,0.9380174]
[1731990530542,0.00204,91700.0,91699.0,0.98328767]
[1731990530867,0.00204,91700.0,91699.0,0.98528767]
[1731990531709,0.00204,91700.0,91699.0,0.98328767]
[1731990531971,0.00204,91700.0,91699.0,0.98528767]
[1731990532167,0.00204,91700.0,91699.0,0.98328767]
[1731990532344,0.0004,91709.0,91708.0,0.23410338]
[1731990532572,0.0004,91709.0,91708.0,0.4730064]
[1731990533233,0.0004,91709.0,91708.0,0.4710064]
[1731990533465,0.03272084,91709.0,91708.0,0.46894402]
[1731990533696,0.03272064,91709.0,91708.0,0.44594402]
[1731990533925,0.03272064,91709.0,91708.0,1.13594402]
[1731990533926,0.0004,91709.0,91708.0,1.13594402]
[1731990534443,0.03274147,91709.0,91708.0,1.13594402]
[1731990534651,0.03274147,91709.0,91708.0,1.17794402]
[1731990534872,0.0004,91709.0,91708.0,1.17794402]
[1731990535090,0.0004,91709.0,91708.0,0.44594402]
[1731990535312,0.03276893,91709.0,91708.0,0.49094402]
[1731990535781,0.0004,91709.0,91708.0,0.49094402]
[1731990536028,0.03276951,91709.0,91708.0,0.49094402]
[1731990537197,0.0004,91709.0,91708.0,0.49094402]
[1731990537421,0.03284114,91709.0,91708.0,0.49094402]
[1731990537654,0.03284114,91709.0,91708.0,0.51394402]
[1731990538100,0.03284114,91709.0,91708.0,0.49094402]
[1731990538378,0.04646523,91709.0,91708.0,0.49094402]
[1731990538840,0.05440285,91709.0,91708.0,0.38188147]
[1731990539779,0.00833762,91709.0,91708.0,0.38188147]
[1731990540005,0.05448298,91709.0,91708.0,0.38188147]
[1731990540942,0.0408583,91709.0,91708.0,0.38188147]
[1731990541796,0.2393983,91709.0,91708.0,0.045]
[1731990542040,0.2986983,91709.0,91708.0,0.045]
[1731990542492,0.2986983,91709.0,91708.0,0.017]
[1731990542959,0.1796583,91709.0,91708.0,0.022]
[1731990543218,0.2886983,91709.0,91708.0,0.022]
[1731990543446,0.1796583,91709.0,91708.0,0.005]
[1731990543675,0.2886983,91709.0,91708.0,0.01]
[1731990543916,0.1725121,91709.0,91708.0,0.01]
[1731990544141,0.1725121,91709.0,91708.0,0.005]
[1731990544367,0.19288279,91709.0,91708.0,0.005]
[1731990544634,0.01,91704.0,91703.0,0.16445655]
[1731990544863,0.03037069,91704.0,91703.0,0.16445655]
[1731990545082,0.03037069,91704.0,91698.0,0.109053]
[1731990545323,0.03259268,91699.0,91696.0,0.109055]
[1731990545569,0.03259268,91699.0,91694.0,0.1]
[1731990545570,0.02830831,91698.0,91697.0,0.109054]
[1731990545813,0.02830831,91698.0,91697.0,0.209054]
[1731990545814,0.02037069,91698.0,91697.0,0.209054]
[1731990546269,0.02830698,91698.0,91697.0,0.209054]
[1731990546524,0.02830698,91698.0,91697.0,0.149054]
[1731990546742,0.02830698,91698.0,91697.0,0.209054]
[1731990547222,0.02830698,91698.0,91697.0,0.109054]
[1731990547449,0.02830698,91698.0,91697.0,0.209054]
[1731990547903,0.02830698,91698.0,91697.0,0.222054]
[1731990548159,0.02830698,91698.0,91697.0,0.113]
[1731990548385,0.02830698,91698.0,91697.0,0.026]
[1731990548386,0.11720698,91698.0,91697.0,0.026]
[1731990548609,0.14979796,91698.0,91697.0,0.013]
[1731990548842,0.11820698,91698.0,91697.0,0.013]
[1731990549293,0.00793762,91694.0,91691.0,0.218122]
[1731990549518,0.00793762,91691.0,91690.0,0.1]
[1731990549803,0.0283059,91691.0,91688.0,0.14477624]
[1731990550037,0.00793762,91691.0,91690.0,0.209063]
[1731990550274,0.02830641,91691.0,91690.0,0.1]
[1731990550719,0.02830641,91691.0,91690.0,0.209063]
[1731990551169,0.07720641,91691.0,91688.0,0.1]
[1731990551393,0.07720641,91691.0,91687.0,0.1536571]
[1731990551394,0.02036879,91690.0,91687.0,0.1445911]
[1731990551616,0.02036879,91690.0,91689.0,0.1]
[1731990551617,0.00793762,91690.0,91689.0,0.1]
[1731990551830,0.02830227,91690.0,91689.0,0.209064]
[1731990552372,0.02830227,91690.0,91682.0,0.04534838]
[1731990552373,0.00793762,91683.0,91682.0,0.04534838]
[1731990552589,0.02830234,91683.0,91682.0,0.25442038]
[1731990552812,0.02830234,91683.0,91682.0,0.209072]
[1731990553468,0.02830234,91683.0,91682.0,0.1]
[1731990553708,0.00793762,91681.0,91680.0,0.1017076]
[1731990553910,0.00793762,91681.0,91680.0,0.0017076]
[1731990553911,0.02830234,91681.0,91680.0,0.0017076]
[1731990554355,0.02830234,91681.0,91680.0,0.2107826]
[1731990554563,0.06086895,91681.0,91680.0,0.1017076]
[1731990555449,0.03830234,91681.0,91680.0,0.0037076]
[1731990555656,0.07085969,91681.0,91680.0,0.0037076]
[1731990556286,0.07085969,91681.0,91680.0,0.0067076]
[1731990557136,0.22823269,91681.0,91680.0,0.0067076]
[1731990558144,0.22323269,91681.0,91680.0,0.0067076]
[1731990558531,0.30523269,91681.0,91680.0,0.0047076]
[1731990558744,0.30523269,91681.0,91680.0,0.0057076]
[1731990558960,0.28489914,91681.0,91680.0,0.0027076]
[1731990559168,0.28189914,91681.0,91680.0,0.0017076]
[1731990559382,0.28789914,91681.0,91680.0,0.0037076]
[1731990559792,0.28489914,91681.0,91680.0,0.0037076]
[1731990560012,0.28789914,91681.0,91680.0,0.0047076]
[1731990560686,0.28489914,91681.0,91680.0,0.0027076]
[1731990561088,0.28789914,91681.0,91680.0,0.0047076]
[1731990561922,0.17882614,91681.0,91680.0,0.0047076]
[1731990562131,0.28789914,91681.0,91680.0,0.0047076]
[1731990562366,0.016,91681.0,91680.0,0.1137826]
[1731990563567,0.013,91681.0,91680.0,0.1127826]
[1731990564024,0.01,91681.0,91680.0,0.1107826]
[1731990564218,0.014,91681.0,91680.0,0.1107826]
[1731990564421,0.017,91681.0,91680.0,0.1107826]
[1731990567032,0.007,91681.0,91680.0,0.1107826]
[1731990567248,0.017,91681.0,91680.0,0.1107826]
[1731990567628,0.007,91681.0,91680.0,0.1107826]
[1731990568912,0.017,91681.0,91680.0,0.1107826]
[1731990570634,0.252973,91681.0,91680.0,0.0017076]
[1731990570870,0.1439,91681.0,91680.0,0.0017076]
[1731990572466,0.252973,91681.0,91680.0,0.0017076]
[1731990573113,0.244973,91681.0,91680.0,0.0017076]
[1731990573325,0.26535253,91681.0,91680.0,0.0017076]
[1731990575867,0.38441508,91681.0,91680.0,0.0017076]
[1731990576078,0.38541508,91681.0,91680.0,0.0017076]
[1731990576514,0.38542031,91681.0,91680.0,0.0017076]
[1731990576733,0.41704261,91681.0,91680.0,0.0017076]
[1731990576948,0.37542031,91681.0,91680.0,0.0027076]
[1731990577163,0.38342031,91681.0,91680.0,0.0027076]
[1731990577376,0.37542031,91681.0,91680.0,0.0027076]
[1731990577611,0.4180485,91681.0,91680.0,0.0027076]
[1731990577841,0.4250485,91681.0,91680.0,0.0047076]
[1731990579010,0.4259023,91681.0,91680.0,0.0047076]
[1731990580306,0.4359023,91681.0,91680.0,0.0047076]
[1731990583410,0.38288935,91681.0,91680.0,0.0047076]
[1731990583619,0.43594918,91681.0,91680.0,0.0047076]
[1731990583825,0.38288935,91681.0,91680.0,0.0047076]
[1731990584045,0.43594907,91681.0,91680.0,0.0047076]
[1731990585716,0.42594907,91681.0,91680.0,0.0047076]
[1731990585928,0.43594907,91681.0,91680.0,0.0047076]
[1731990588181,0.42794907,91681.0,91680.0,0.0047076]
[1731990590481,0.55578954,91681.0,91680.0,0.0047076]
[1731990591402,0.65344539,91681.0,91680.0,0.0047076]
[1731990591637,0.70227332,91681.0,91680.0,0.0047076]
[1731990591866,0.55578954,91681.0,91680.0,0.0047076]
[1731990592095,0.91687389,91681.0,91680.0,0.0047076]
[1731990592333,0.55578954,91681.0,91680.0,0.0047076]
[1731990592566,0.91689085,91681.0,91680.0,0.0047076]
[1731990593308,1.10520256,91681.0,91680.0,0.0027076]
[1731990593558,0.90889085,91681.0,91680.0,0.0017076]
[1731990593812,0.91589085,91681.0,91680.0,0.0037076]
[1731990594042,1.10420256,91681.0,91680.0,0.0017076]
[1731990594285,1.11120256,91681.0,91680.0,0.0037076]
[1731990594510,0.91589085,91681.0,91680.0,0.0037076]
[1731990594750,1.11120256,91681.0,91680.0,0.0047076]
[1731990594975,1.12220256,91681.0,91680.0,0.0047076]
[1731990595212,1.12220256,91681.0,91680.0,0.0037076]
[1731990595213,0.91589085,91681.0,91680.0,0.0037076]
[1731990595742,0.92789085,91681.0,91680.0,0.0037076]
[1731990595976,0.95489085,91681.0,91680.0,0.0037076]
[1731990596199,0.91089085,91681.0,91680.0,0.0017076]
[1731990596441,1.07989085,91681.0,91680.0,0.0037076]
[1731990596686,1.05289085,91681.0,91680.0,0.0037076]
[1731990597145,1.07989085,91681.0,91680.0,0.0037076]
[1731990597352,1.05297943,91681.0,91680.0,0.0037076]
[1731990597560,1.07997943,91681.0,91680.0,0.0037076]
[1731990598416,1.06097943,91681.0,91680.0,0.0017076]
[1731990598628,1.06097943,91681.0,91655.0,0.08233537]
[1731990598629,0.001,91656.0,91655.0,0.08233537]
[1731990598846,0.02140758,91656.0,91655.0,0.08233537]
[1731990599270,0.02140758,91656.0,91654.0,0.109105]
[1731990599481,0.02140758,91655.0,91654.0,0.109105]
[1731990599900,0.001,91646.0,91645.0,0.49180355]
[1731990600321,0.001,91646.0,91645.0,0.327347]
[1731990600525,0.002,91656.0,91648.0,0.109112]
[1731990600526,0.001,91650.0,91648.0,0.109112]
[1731990600760,0.001,91649.0,91648.0,0.109112]
[1731990601192,0.02139987,91649.0,91648.0,0.109112]
[1731990601628,0.001,91649.0,91648.0,0.109112]
[1731990602605,0.001,91649.0,91648.0,0.114112]
[1731990602824,0.001,91649.0,91648.0,0.011]
[1731990603026,0.02139536,91649.0,91648.0,0.114113]
[1731990603258,0.02239536,91649.0,91648.0,0.120113]
[1731990603506,0.001,91649.0,91648.0,0.48994361]
[1731990603719,0.001,91649.0,91648.0,0.45567555]
[1731990603929,0.16445655,91657.0,91656.0,0.109103]
[1731990604152,0.15845655,91667.0,91656.0,0.109103]
[1731990604153,0.15845655,91667.0,91666.0,0.156891]
[1731990604354,0.15845655,91667.0,91666.0,0.235591]
[1731990604556,0.03262743,91678.0,91677.0,0.109078]
[1731990604782,0.05301945,91678.0,91677.0,0.109078]
[1731990604993,0.02039202,91678.0,91677.0,0.209078]
[1731990605204,0.0008538,91681.0,91680.0,0.109075]
[1731990605349,0.0008538,91681.0,91680.0,0.209075]
[1731990606359,0.0008538,91681.0,91680.0,0.212075]
[1731990607891,0.0008538,91681.0,91680.0,0.213075]
[1731990610946,0.0008538,91681.0,91680.0,0.39983755]
[1731990611166,8e-07,91681.0,91680.0,0.49317794]
[1731990611406,8e-07,91681.0,91680.0,0.48203755]
[1731990611612,8e-07,91681.0,91680.0,0.58911596]
[1731990611823,8e-07,91681.0,91680.0,0.57711596]
[1731990612055,8e-07,91681.0,91680.0,0.47703755]
[1731990612268,0.0010008,91681.0,91680.0,0.47603755]
[1731990612499,0.0010008,91681.0,91680.0,0.46603755]
[1731990612701,0.0010008,91681.0,91680.0,0.45403755]
[1731990612702,8e-07,91681.0,91680.0,0.45403755]
[1731990612916,8e-07,91681.0,91680.0,0.45303755]
[1731990613161,0.0030008,91681.0,91680.0,0.49903755]
[1731990613645,0.0010008,91681.0,91680.0,0.361975]
[1731990613871,0.0010008,91681.0,91680.0,0.261975]
[1731990614293,0.0030008,91681.0,91680.0,0.289975]
[1731990614449,8e-07,91681.0,91680.0,0.233975]
[1731990614908,0.0030008,91681.0,91680.0,0.240775]
[1731990615070,0.0030008,91681.0,91680.0,0.340775]
[1731990615275,0.0020008,91681.0,91680.0,0.137075]
[1731990615555,0.0030008,91681.0,91680.0,0.157075]
[1731990616218,0.0030008,91681.0,91680.0,0.137075]
[1731990616428,0.0020008,91681.0,91680.0,0.137075]
[1731990616652,8e-07,91681.0,91680.0,0.209075]
[1731990617086,8e-07,91681.0,91680.0,0.235075]
[1731990617087,0.0010008,91681.0,91680.0,0.235075]
[1731990617296,0.0010008,91681.0,91680.0,0.219075]
[1731990617297,8e-07,91681.0,91680.0,0.219075]
[1731990617745,8e-07,91681.0,91680.0,0.211075]
[1731990618185,0.15645735,91692.0,91681.0,0.1]
[1731990618433,0.0008537,91697.0,91689.0,0.109063]
[1731990618630,0.109063,91690.0,91683.0,0.10907]
[1731990618815,0.109063,91690.0,91684.0,0.109069]
[1731990619092,0.109063,91690.0,91682.0,0.16445655]
[1731990619093,0.01,91691.0,91683.0,0.218142]
[1731990619306,0.01,91691.0,91682.0,0.16445655]
[1731990619307,0.01,91691.0,91686.0,0.109067]
[1731990619512,0.01,91691.0,91684.0,0.21814]
[1731990619513,0.01,91691.0,91690.0,0.109063]
[1731990619729,0.01,91691.0,91689.0,0.001]
[1731990619970,0.01,91691.0,91682.0,0.16445655]
[1731990620165,0.0148537,91697.0,91682.0,0.16445655]
[1731990620166,0.0148537,91697.0,91684.0,0.1258]
[1731990620387,0.0148537,91697.0,91696.0,0.109056]
[1731990620593,0.0008537,91697.0,91696.0,0.109056]
[1731990621923,0.0138537,91697.0,91696.0,0.110056]
[1731990622392,0.0188537,91697.0,91696.0,0.286356]
[1731990622818,0.0138537,91697.0,91696.0,0.39541855]
[1731990623023,0.0278537,91697.0,91696.0,0.39641855]
[1731990623244,0.0008537,91697.0,91696.0,0.39441855]
[1731990623663,0.0018537,91697.0,91696.0,0.40241855]
[1731990623892,0.0008537,91697.0,91696.0,0.39441855]
[1731990624109,0.0038537,91697.0,91696.0,0.42141855]
[1731990624330,0.0008537,91697.0,91696.0,0.39941855]
[1731990624786,0.0008537,91697.0,91696.0,0.39441855]
[1731990625268,0.0018537,91697.0,91696.0,0.232056]
[1731990625736,0.0048537,91697.0,91696.0,0.258056]
[1731990626334,0.0048537,91697.0,91696.0,0.049]
[1731990626901,0.0048537,91697.0,91696.0,0.158056]
[1731990627531,0.0018537,91697.0,91696.0,0.132056]
[1731990628014,0.0008537,91697.0,91696.0,0.109056]
[1731990628232,0.0008537,91697.0,91696.0,0.117056]
[1731990628645,0.0008537,91697.0,91696.0,0.109056]
[1731990628863,0.0008537,91697.0,91696.0,0.112056]
[1731990629096,0.0008537,91697.0,91696.0,0.002]
[1731990629311,0.1099077,91697.0,91696.0,0.003]
[1731990629516,0.1099077,91697.0,91696.0,0.001]
[1731990629736,0.1099077,91697.0,91696.0,0.003]
[1731990630199,0.1099077,91697.0,91696.0,0.002]
[1731990630632,0.1219077,91697.0,91696.0,0.003]
[1731990630863,0.24097025,91697.0,91696.0,0.001]
[1731990631109,0.13106255,91697.0,91696.0,0.001]
[1731990631324,0.23511655,91697.0,91696.0,0.001]
[1731990631784,0.25046328,91697.0,91696.0,0.001]
[1731990632005,0.04234673,91697.0,91696.0,0.110056]
[1731990632240,0.01,91697.0,91696.0,0.110056]
[1731990632475,0.05236387,91697.0,91696.0,0.112056]
[1731990632986,0.05236387,91697.0,91696.0,0.003]
[1731990633459,0.15341787,91697.0,91696.0,0.003]
[1731990634444,0.18605468,91697.0,91696.0,0.003]
[1731990635343,0.30511723,91697.0,91696.0,0.003]
[1731990635838,0.45124581,91697.0,91696.0,0.003]
[1731990637020,0.44761723,91697.0,91696.0,0.003]